bitfinex-derivatives/quotes_ETHF0:USTF0_20240817
["timestamp","ask_amount","ask_price","bid_price","bid_amount"]
[1723890831953,1.00617823,2598.9,2598.8,1.11206225]
[1723890832153,1.50923476,2598.9,2598.8,0.00406225]
[1723890832349,2.61723476,2599.0,2598.8,0.00406225]
[1723890832651,1.00587884,2598.9,2598.8,0.00406225]
[1723890832850,1.50923476,2598.9,2598.8,0.00406225]
[1723890833451,1.00561915,2598.9,2598.8,0.00406225]
[1723890833743,1.00566869,2598.9,2598.8,0.00406225]
[1723890834145,2.61723476,2599.0,2598.8,0.00406225]
[1723890834349,1.00567684,2598.9,2598.8,1.11206225]
[1723890834548,1.00567684,2599.0,2598.8,2.90862225]
[1723890834849,2.08647684,2599.1,2598.8,2.90862225]
[1723890835650,2.08647684,2599.1,2598.8,1.46596225]
[1723890835850,1.00567684,2599.0,2598.8,1.46596225]
[1723890836048,2.08647684,2599.1,2598.8,1.46596225]
[1723890838360,3.19447684,2599.1,2598.8,0.35796225]
[1723890838551,1.00567684,2599.0,2598.8,0.00406225]
[1723890840759,3.19447684,2599.1,2598.8,0.00406225]
[1723890841258,4.63700684,2599.1,2598.8,0.00406225]
[1723890841757,1.00567684,2599.0,2598.8,0.00406225]
[1723890842157,4.63700684,2599.1,2598.8,0.00406225]
[1723890842553,1.00567684,2599.0,2598.8,0.00406225]
[1723890843259,3.63133,2599.1,2598.8,0.00406225]
[1723890843260,4.63700684,2599.1,2598.8,1.11206225]
[1723890843858,1.108,2598.9,2598.8,0.00406225]
[1723890844249,4.956,2598.9,2598.8,0.00406225]
[1723890844453,9.60641,2598.9,2598.8,0.00406225]
[1723890846662,6.39861,2598.9,2598.8,0.00406225]
[1723890847755,9.60641,2598.9,2598.8,0.00406225]
[1723890848659,8.1638,2598.9,2598.8,0.00406225]
[1723890849252,3.52899684,2599.1,2598.8,0.00406225]
[1723890849451,8.48499684,2599.1,2598.8,0.00406225]
[1723890850364,4.65035,2599.0,2598.8,0.00406225]
[1723890850664,3.2078,2599.0,2598.8,0.00406225]
[1723890850868,7.0558,2599.0,2598.8,0.00406225]
[1723890851255,3.848,2599.0,2598.8,0.00406225]
[1723890851667,7.0558,2599.0,2598.8,0.00406225]
[1723890854462,3.2078,2599.0,2598.8,0.00406225]
[1723890857068,3.2078,2599.0,2598.9,1.108]
[1723890857374,0.3489,2599.1,2598.9,2.88431]
[1723890857567,0.3489,2599.1,2598.9,3.62401]
[1723890857765,2.46257684,2599.1,2598.9,0.7397]
[1723890858164,1.4569,2599.1,2598.9,0.7397]
[1723890858363,4.3158,2599.0,2598.8,0.00406225]
[1723890858672,0.3654,2598.9,2598.8,0.00406225]
[1723890862577,1.37107684,2598.9,2598.8,0.00406225]
[1723890862972,0.3654,2598.9,2598.8,0.00406225]
[1723890863778,1.37107684,2598.9,2598.8,0.00406225]
[1723890867576,1.00567684,2598.9,2598.8,0.00406225]
[1723890870074,5.07183476,2599.0,2598.8,0.00406225]
[1723890870474,1.50923476,2598.9,2598.8,0.00406225]
[1723890871783,1.50923476,2598.9,2598.8,1.44672225]
[1723890871973,1.50923476,2598.9,2598.8,6.3023383]
[1723890872175,1.00724627,2598.9,2598.8,8.71844155]
[1723890872386,1.00724627,2598.9,2598.8,7.21841257]
[1723890872589,1.00724627,2598.9,2598.8,8.32641257]
[1723890872770,1.00724627,2599.0,2598.8,10.32611438]
[1723890872975,1.85813476,2599.1,2598.9,3.43660404]
[1723890873177,1.00770874,2599.0,2598.9,2.19051372]
[1723890873477,1.85813476,2599.1,2598.9,2.19051372]
[1723890873478,1.85813476,2599.1,2599.0,1.108]
[1723890873680,1.50923476,2599.1,2599.0,5.98741254]
[1723890874988,1.50923476,2599.1,2599.0,5.98736805]
[1723890875176,1.50923476,2599.2,2599.0,5.98736805]
[1723890875373,2.3743733,2599.3,2599.1,1.38109175]
[1723890875577,1.51156807,2599.2,2599.1,1.38109175]
[1723890876084,2.3743733,2599.3,2599.1,1.38109175]
[1723890876489,1.51154474,2599.2,2599.1,1.38109175]
[1723890876878,1.51194469,2599.2,2599.1,1.38109175]
[1723890877079,3.4823733,2599.3,2599.1,0.3724]
[1723890877882,1.51186958,2599.2,2599.1,0.3724]
[1723890878788,3.4823733,2599.3,2599.1,0.3724]
[1723890879485,1.51134457,2599.2,2599.1,0.3724]
[1723890879683,1.51134457,2599.2,2599.0,3.55924175]
[1723890880185,1.51134457,2599.2,2599.1,2.5505]
[1723890880383,1.51134457,2599.3,2599.2,1.44244]
[1723890880591,1.51134457,2599.4,2599.3,1.44238]
[1723890880888,1.00754243,2599.4,2599.3,6.66012407]
[1723890881086,1.00754243,2599.5,2599.4,1.44233]
[1723890881284,1.00754243,2599.5,2599.4,3.55834425]
[1723890881485,1.00754243,2599.5,2599.4,7.40554425]
[1723890882296,1.00754243,2599.6,2599.4,7.40554425]
[1723890882494,1.00754243,2599.6,2599.4,3.55834425]
[1723890882685,1.00754243,2599.6,2599.4,2.11601425]
[1723890882988,1.00754243,2599.6,2599.4,1.00801425]
[1723890883195,2.11554243,2599.6,2599.4,1.00801425]
[1723890883490,2.11554243,2599.6,2599.3,2.47851425]
[1723890884187,2.11554243,2599.6,2599.3,1.00801425]
[1723890884985,2.11554243,2599.6,2599.3,2.45039425]
[1723890885492,1.108,2599.6,2599.3,2.45039425]
[1723890886391,1.108,2599.6,2599.2,3.92113425]
[1723890886792,1.108,2599.6,2599.3,4.29212412]
[1723890887488,1.36524243,2599.7,2599.5,1.108]
[1723890887690,1.36524243,2599.7,2599.6,2.55022]
[1723890887691,0.3577,2599.7,2599.6,2.55022]
[1723890887887,0.3577,2599.7,2599.6,5.70130887]
[1723890888088,0.00034869,2599.8,2599.7,1.44216]
[1723890888293,0.00034869,2599.8,2599.7,9.50437425]
[1723890888497,0.00034869,2599.8,2599.7,13.96652203]
[1723890888707,0.00034869,2599.8,2599.7,15.88935719]
[1723890889385,0.00034869,2599.8,2599.7,13.96652203]
[1723890889897,0.00034869,2599.8,2599.7,12.96088416]
[1723890900598,0.00034869,2599.8,2599.7,17.96088416]
[1723890901897,0.00034869,2599.8,2599.7,12.96088416]
[1723890902091,0.00034869,2599.8,2599.7,14.06888416]
[1723890902701,0.00034869,2599.8,2599.7,10.22248416]
[1723890903004,0.00034869,2599.8,2599.7,14.06888416]
[1723890906904,0.00034869,2599.8,2599.7,19.06888416]
[1723890907097,0.00577145,2600.0,2599.9,2.55005]
[1723890907514,0.00577145,2600.0,2599.9,10.62684171]
[1723890908002,0.00890595,2600.0,2599.9,10.62684171]
[1723890909700,0.00890595,2600.0,2599.9,15.62684171]
[1723890912107,0.00890595,2600.0,2599.9,15.93309915]
[1723890913212,0.00890595,2600.0,2599.9,16.26689915]
[1723890916708,0.00890595,2600.0,2599.9,17.27253702]
[1723890916900,0.00890595,2600.0,2599.9,20.48033702]
[1723890917099,0.00890595,2600.0,2599.9,15.14653702]
[1723890917304,0.00890595,2600.0,2599.9,14.14089915]
[1723890917507,0.00890595,2600.0,2599.9,15.14653702]
[1723890919011,0.00890595,2600.0,2599.9,17.06908345]
[1723890920014,0.00890595,2600.0,2599.9,15.14653702]
[1723890920217,0.00890595,2600.0,2599.9,17.06906939]
[1723890920514,0.00890595,2600.0,2599.9,17.06907123]
[1723890921408,0.00890595,2600.0,2599.9,16.06343336]
[1723890922511,0.00890595,2600.0,2599.9,17.57673596]
[1723890922905,0.00890595,2600.0,2599.9,17.57673299]
[1723890923815,1.0631,2600.6,2599.9,21.13468299]
[1723890924017,1.0631,2600.6,2600.5,1.108]
[1723890924811,1.06652569,2600.6,2600.5,1.108]
[1723890925515,1.06652569,2600.6,2600.5,41.908]
[1723890925708,1.06652569,2600.6,2600.5,43.34972]
[1723890925907,1.06652569,2600.6,2600.5,47.70830149]
[1723890926512,1.06652569,2600.6,2600.5,46.26658149]
[1723890926714,1.06652569,2600.6,2600.5,47.70830149]
[1723890927622,1.06652569,2600.6,2600.5,46.26658149]
[1723890928016,1.06652569,2600.6,2600.5,5.46658149]
[1723890929018,1.06652569,2600.6,2600.5,6.90830149]
[1723890931509,1.06652569,2600.6,2600.5,7.91198447]
[1723890932020,1.06652569,2600.6,2600.5,10.75390149]
[1723890932322,1.06652569,2600.6,2600.5,14.18945836]
[1723890933423,1.06652569,2600.6,2600.5,12.67615576]
[1723890933617,1.06652569,2600.6,2600.5,14.18335023]
[1723890934418,1.06652569,2600.6,2600.5,12.67615576]
[1723890935525,0.35902569,2600.6,2600.5,12.67615576]
[1723890935723,0.35902569,2600.6,2600.5,14.67585757]
[1723890936331,0.35902569,2600.6,2600.5,14.67569763]
[1723890936826,0.35902569,2600.6,2600.5,12.67599582]
[1723890937031,0.35902569,2600.6,2600.5,14.67569763]
[1723890937226,0.00342569,2600.6,2600.5,14.67569763]
[1723890937435,0.00342569,2600.6,2600.5,21.52007636]
[1723890937627,0.00342569,2600.6,2600.5,24.02012466]
[1723890937930,0.00577145,2600.8,2600.7,1.44161]
[1723890938235,0.00577145,2600.8,2600.7,14.00356481]
[1723890938533,0.00577145,2600.8,2600.7,17.84836481]
[1723890938730,0.01055236,2600.8,2600.7,17.85145833]
[1723890940635,0.01055236,2600.8,2600.7,18.15773454]
[1723890940833,0.01055236,2600.8,2600.7,18.15757842]
[1723890941221,0.01055236,2600.8,2600.7,17.04957842]
[1723890941428,0.01055236,2600.8,2600.7,17.65459568]
[1723890941639,0.01055236,2600.8,2600.7,16.14995932]
[1723890942529,0.01055236,2600.8,2600.7,12.30515932]
[1723890942737,0.01055236,2600.8,2600.7,13.8097086]
[1723890943333,0.01055236,2600.8,2600.7,12.30515932]
[1723890943537,0.01055236,2600.8,2600.7,10.95383012]
[1723890943734,0.01055236,2600.8,2600.7,9.63843826]
[1723890944737,3.85535236,2600.8,2600.7,5.32199688]
[1723890946336,0.01055236,2600.8,2600.7,5.76050352]
[1723890946640,0.01055236,2600.8,2600.7,5.32199688]
[1723890947838,0.01055236,2600.8,2600.7,7.24409297]
[1723890948537,0.01055236,2600.8,2600.7,4.03629297]
[1723890948737,0.01055236,2600.8,2600.7,8.68570297]
[1723890949034,0.01055236,2600.8,2600.7,12.94854476]
[1723890949235,0.01055236,2600.8,2600.7,13.44981551]
[1723890949435,0.01055236,2600.8,2600.7,12.94856478]
[1723890949649,0.01055236,2600.8,2600.7,12.94857246]
[1723890949934,0.01055236,2600.8,2600.7,12.94863341]
[1723890950134,0.01055236,2600.8,2600.7,12.9486507]
[1723890950333,0.01055236,2600.8,2600.7,17.29470103]
[1723890950538,0.00036398,2600.8,2600.7,15.79014402]
[1723890950733,0.00036398,2600.8,2600.7,17.79776312]
[1723890952141,0.00036398,2600.8,2600.7,15.79014402]
[1723890952737,0.00036398,2600.8,2600.7,17.79776312]
[1723890954345,0.00036398,2600.8,2600.7,17.79753493]
[1723890954941,0.00036398,2600.8,2600.7,11.94511583]
[1723890955543,0.00036398,2600.8,2600.7,17.79753493]
[1723890958150,0.00036398,2600.8,2600.7,15.78991583]
[1723890958445,0.00036398,2600.8,2600.7,17.79561059]
[1723890958637,0.00036398,2600.8,2600.7,17.7955984]
[1723890959149,0.00036398,2600.8,2600.7,15.78987723]
[1723890959348,0.00036398,2600.8,2600.7,17.79546611]
[1723890961847,0.00036398,2600.8,2600.7,17.79579412]
[1723890962649,0.00036398,2600.8,2600.7,15.78991704]
[1723890963452,0.00036398,2600.8,2600.7,18.29951825]
[1723890964347,0.00036398,2600.8,2600.7,23.7997396]
[1723890964551,0.00577145,2601.0,2600.9,1.4415]
[1723890964849,0.00577145,2601.0,2600.9,4.55541268]
[1723890965053,0.00577145,2601.0,2600.9,14.49395745]
[1723890965253,1.1202,2601.2,2601.1,1.44138]
[1723890965461,1.12325094,2601.2,2601.1,7.67908175]
[1723890965644,1.12325094,2601.2,2601.1,17.60955927]
[1723890966951,1.12325094,2601.2,2601.1,13.76475927]
[1723890967249,1.12325094,2601.2,2601.1,17.60955927]
[1723890967449,0.00305094,2601.2,2601.1,17.60955927]
[1723890967642,0.00305094,2601.2,2601.1,17.94335927]
[1723890969046,0.00305094,2601.2,2601.1,13.76475927]
[1723890969252,0.00305094,2601.2,2601.1,17.60955927]
[1723890970945,0.00305094,2601.2,2601.1,17.60925944]
[1723890971551,0.00305094,2601.2,2601.1,17.90864233]
[1723890972757,0.00305094,2601.2,2601.1,15.98704041]
[1723890973050,0.00305094,2601.2,2601.1,15.90285898]
[1723890973246,0.00305094,2601.2,2601.1,17.90844153]
[1723890973642,0.00305094,2601.2,2601.1,15.90285898]
[1723890973849,0.00305094,2601.2,2601.1,17.90869408]
[1723890974145,0.00305094,2601.2,2601.1,18.24223956]
[1723890974350,0.00305094,2601.2,2601.1,16.23655898]
[1723890975143,0.00305094,2601.2,2601.1,17.90867027]
[1723890975348,0.00305094,2601.2,2601.1,12.14229121]
[1723890975656,0.00305094,2601.2,2601.1,14.06395932]
[1723890977248,0.00305094,2601.2,2601.1,12.32319643]
[1723890977557,0.00305094,2601.2,2601.1,8.61453077]
[1723890978256,3.84785094,2601.2,2601.1,8.61453077]
[1723890978452,3.84785094,2601.2,2601.1,4.53461374]
[1723890979659,3.84785094,2601.2,2601.1,3.02966811]
[1723890979851,3.84785094,2601.2,2601.1,2.11184853]
[1723890980160,3.84785094,2601.2,2601.1,4.53486714]
[1723890982453,0.71892152,2601.4,2601.1,5.10837881]
[1723890982648,0.71892152,2601.4,2601.3,1.108]
[1723890983058,9.56292152,2601.4,2601.3,1.108]
[1723890983562,14.88829457,2601.4,2601.2,1.00416278]
[1723890983766,3.844,2601.3,2600.7,0.80580193]
[1723890983952,3.844,2601.3,2600.7,0.00309352]
[1723890983953,1.00681458,2600.9,2600.7,0.00309352]
[1723890984157,1.00681458,2600.8,2600.7,0.00309352]
[1723890984357,9.85161458,2600.8,2600.7,0.00309352]
[1723890984665,11.79660188,2600.8,2600.5,1.108]
[1723890984967,4.85221992,2600.7,2600.5,1.108]
[1723890985474,3.8456,2600.6,2600.5,1.108]
[1723890985763,3.8456,2600.6,2600.5,1.110905]
[1723890985966,8.8456,2600.6,2600.5,1.110905]
[1723890987264,0.7162,2600.7,2600.5,1.68441667]
[1723890987963,0.373,2600.6,2600.5,1.68441667]
[1723890988164,0.373,2600.6,2600.5,3.12613667]
[1723890988368,0.373,2600.6,2600.5,6.55527302]
[1723890988853,0.373,2600.6,2600.5,6.55522791]
[1723890991265,0.7326,2601.0,2600.6,1.44161]
[1723890991466,0.3741,2600.9,2600.7,0.6868]
[1723890991665,0.3741,2600.9,2600.7,4.91237489]
[1723890991873,0.3741,2600.9,2600.8,0.57351167]
[1723890992667,0.3741,2600.9,2600.8,1.68151167]
[1723890993064,0.3741,2600.9,2600.8,0.57351167]
[1723890993267,0.3741,2600.9,2600.8,1.68151167]
[1723890997167,0.3741,2600.9,2600.8,3.12306167]
[1723890997387,4.53447663,2601.3,2600.9,1.44146]
[1723890997388,4.27185671,2601.3,2600.9,1.44146]
[1723890997679,0.3635,2601.2,2601.0,1.44143]
[1723890998165,4.2083,2601.2,2601.0,1.44143]
[1723890998569,4.2083,2601.2,2600.9,1.44147]
[1723890998769,0.3635,2601.2,2601.1,1.108]
[1723890999172,4.2083,2601.2,2601.1,1.108]
[1723891004081,4.2083,2601.2,2601.1,2.54938]
[1723891005775,3.8448,2601.2,2601.1,2.54938]
[1723891007870,0.34899846,2601.4,2601.1,1.68151167]
[1723891008075,0.00679846,2601.4,2601.3,3.12278167]
[1723891008474,0.00679846,2601.4,2601.3,7.15489126]
[1723891008676,0.00679846,2601.4,2601.3,47.95489126]
[1723891012391,0.00679846,2601.4,2601.3,46.51362126]
[1723891015381,0.00679846,2601.4,2601.3,47.95489126]
[1723891015680,0.00679846,2601.4,2601.3,1.68151167]
[1723891022286,11.40004846,2601.4,2601.0,4.71261532]
[1723891022488,11.40004846,2601.4,2601.0,1.108]
[1723891022489,4.5496,2601.3,2601.0,1.108]
[1723891022688,6.99750992,2601.3,2601.0,1.108]
[1723891022889,1.35831992,2601.2,2601.0,1.108]
[1723891023094,5.20311992,2601.2,2601.0,1.108]
[1723891023393,5.20311992,2601.2,2601.1,1.108]
[1723891023588,1.35831992,2601.2,2601.1,1.108]
[1723891023789,5.20311992,2601.2,2601.1,1.108]
[1723891024288,4.1965,2601.2,2601.1,1.108]
[1723891024486,5.20311992,2601.2,2601.1,1.108]
[1723891025492,4.1965,2601.2,2601.1,1.108]
[1723891028293,4.1965,2601.2,2601.0,0.748]
[1723891028503,4.1965,2601.2,2601.1,1.108]
[1723891028689,0.3517,2601.2,2601.1,1.108]
[1723891028991,4.1965,2601.2,2601.1,1.108]
[1723891031591,0.00679846,2601.4,2601.1,3.12289167]
[1723891031796,0.00679846,2601.4,2601.3,0.57351167]
[1723891031797,0.36989846,2601.4,2601.3,0.57351167]
[1723891032800,0.36989846,2601.4,2601.3,2.39178167]
[1723891035089,0.36989846,2601.4,2601.3,4.31355014]
[1723891035289,0.36989846,2601.4,2601.3,2.39178167]
[1723891036694,0.36989846,2601.4,2601.3,4.31357446]
[1723891037596,0.36989846,2601.4,2601.3,2.39178167]
[1723891037797,0.36989846,2601.4,2601.3,4.31353005]
[1723891038894,0.36989846,2601.4,2601.3,4.31354996]
[1723891039090,0.36989846,2601.4,2601.3,4.31352711]
[1723891039900,0.36989846,2601.4,2601.3,5.81834243]
[1723891042603,0.36989846,2601.4,2601.3,5.81832498]
[1723891043207,0.36989846,2601.4,2601.3,4.37705498]
[1723891043396,0.36989846,2601.4,2601.3,2.87223966]
[1723891044298,0.36989846,2601.4,2601.3,4.37705498]
[1723891044609,0.36989846,2601.4,2601.3,2.87223966]
[1723891046007,0.36989846,2601.4,2601.3,2.49523966]
[1723891046395,0.36989846,2601.4,2601.3,2.49533184]
[1723891047205,0.36989846,2601.4,2601.3,4.00014716]
[1723891048695,0.36989846,2601.4,2601.3,2.49533184]
[1723891049307,0.00679846,2601.4,2601.3,2.49533184]
[1723891049508,0.00679846,2601.4,2601.3,5.44141716]
[1723891049902,0.00679846,2601.4,2601.3,8.09435921]
[1723891050212,0.00679846,2601.4,2601.3,9.60308734]
[1723891050406,0.00679846,2601.4,2601.3,9.91080384]
[1723891050604,0.00679846,2601.4,2601.3,10.407887]
[1723891050805,0.00679846,2601.4,2601.3,10.40771035]
[1723891051004,0.00679846,2601.4,2601.3,10.41346774]
[1723891051707,0.00679846,2601.4,2601.3,8.40189906]
[1723891051910,0.00679846,2601.4,2601.3,10.91150027]
[1723891052106,0.00023726,2601.4,2601.3,14.75478731]
[1723891052298,0.00023726,2601.4,2601.3,12.2451861]
[1723891052500,0.00023726,2601.4,2601.3,14.75875907]
[1723891052707,0.00023726,2601.4,2601.3,10.91547203]
[1723891053206,0.00023726,2601.4,2601.3,10.91560909]
[1723891055393,0.00023726,2601.4,2601.3,10.9154992]
[1723891056708,0.00023726,2601.4,2601.3,8.40178917]
[1723891057008,0.00023726,2601.4,2601.3,10.9154992]
[1723891059806,0.00023726,2601.4,2601.3,10.91538805]
[1723891061317,0.00023726,2601.4,2601.3,8.40167802]
[1723891061809,0.00023726,2601.4,2601.3,10.91538805]
[1723891062618,0.00023726,2601.4,2601.3,8.40167802]
[1723891062914,0.00023726,2601.4,2601.3,10.91538805]
[1723891064410,0.00023726,2601.4,2601.3,13.40173762]
[1723891064709,0.00023726,2601.4,2601.3,15.91544765]
[1723891065413,0.00023726,2601.4,2601.3,13.40173762]
[1723891065916,0.00023726,2601.4,2601.3,15.91544765]
[1723891066715,0.00023726,2601.4,2601.3,56.71544765]
[1723891067015,0.00023726,2601.4,2601.3,58.04470178]
[1723891067409,0.00023726,2601.4,2601.3,60.55581117]
[1723891067921,0.00023726,2601.4,2601.3,55.55581117]
[1723891068717,0.00023726,2601.4,2601.3,60.55581117]
[1723891068920,0.00023726,2601.4,2601.3,58.04463516]
[1723891069213,0.00023726,2601.4,2601.3,55.55574455]
[1723891069722,0.00023726,2601.4,2601.3,60.55574455]
[1723891070011,0.00023726,2601.4,2601.3,55.55574455]
[1723891071108,0.3419,2601.9,2601.8,1.44099]
[1723891071408,0.3503,2602.2,2601.8,12.83796008]
[1723891071612,0.3503,2602.2,2602.1,4.54741167]
[1723891071812,0.3503,2602.2,2602.1,45.34741167]
[1723891072120,0.35429477,2602.2,2602.1,4.54741167]
[1723891072304,0.35429477,2602.2,2602.1,6.05407078]
[1723891072508,0.00399477,2602.2,2602.1,48.77505652]
[1723891072910,0.00399477,2602.2,2602.1,47.26839741]
[1723891073111,0.00399477,2602.2,2602.1,48.77443201]
[1723891073411,0.00399477,2602.2,2602.1,48.77441538]
[1723891073715,0.00399477,2602.2,2602.1,47.26838078]
[1723891073913,0.00399477,2602.2,2602.1,48.77396482]
[1723891075417,0.00399477,2602.2,2602.1,47.26838078]
[1723891076210,0.00399477,2602.2,2602.1,12.14539353]
[1723891076618,0.00399477,2602.2,2602.1,14.15499217]
[1723891076915,0.00399477,2602.2,2602.1,54.95499217]
[1723891077315,0.00399477,2602.2,2602.1,52.94539353]
[1723891077516,0.00399477,2602.2,2602.1,54.95499217]
[1723891077818,0.00399477,2602.2,2602.1,54.95482141]
[1723891078016,0.00399477,2602.2,2602.1,52.94522277]
[1723891078320,0.00399477,2602.2,2602.1,58.79634857]
[1723891079320,0.00399477,2602.2,2602.1,52.94522277]
[1723891079515,0.00399477,2602.2,2602.1,54.95482141]
[1723891080915,0.00399477,2602.2,2602.1,55.25345174]
[1723891081218,0.00399477,2602.2,2602.1,54.7475267]
[1723891082118,0.00399477,2602.2,2602.1,53.243973]
[1723891082323,0.00399477,2602.2,2602.1,54.74701186]
[1723891082627,0.00399477,2602.2,2602.1,53.243973]
[1723891082818,0.00399477,2602.2,2602.1,54.74699243]
[1723891083122,0.00399477,2602.2,2602.1,53.243973]
[1723891083318,0.00399477,2602.2,2602.1,54.74675983]
[1723891083523,0.00399477,2602.2,2602.1,53.243973]
[1723891084218,0.00399477,2602.2,2602.1,54.7467596]
[1723891085028,0.00399477,2602.2,2602.1,53.243973]
[1723891085233,0.00399477,2602.2,2602.1,54.7466607]
[1723891085526,0.00399477,2602.2,2602.1,54.74653127]
[1723891088322,0.00399477,2602.2,2602.1,53.24384357]
[1723891088519,0.00399477,2602.2,2602.1,54.74629043]
[1723891088722,0.00399477,2602.2,2602.1,53.24384357]
[1723891089224,0.00399477,2602.2,2602.1,54.74682442]
[1723891089527,0.00399477,2602.2,2602.1,51.32305475]
[1723891089728,0.00399477,2602.2,2602.1,53.2440344]
[1723891090114,0.00399477,2602.2,2602.1,53.24400218]
[1723891091124,0.00399477,2602.2,2602.1,53.24402349]
[1723891091521,0.00399477,2602.2,2602.1,48.77422475]
[1723891091826,8.84719477,2602.2,2602.1,1.108]
[1723891093133,9.57469477,2602.2,2602.1,1.108]
[1723891096422,11.68931469,2602.2,2601.7,5.38477145]
[1723891096625,11.68931469,2602.2,2601.8,1.108]
[1723891096626,3.2078,2602.0,2601.8,1.108]
[1723891096823,3.8432,2601.9,2601.8,1.108]
[1723891097022,4.1893,2601.9,2601.8,1.108]
[1723891098824,4.1893,2601.9,2601.7,0.00577145]
[1723891099028,0.709,2601.8,2601.7,0.00577145]
[1723891099234,0.709,2601.8,2601.7,1.11377145]
[1723891099536,4.5522,2601.8,2601.7,1.11377145]
[1723891100831,0.3461,2601.9,2601.7,1.34538312]
[1723891101042,0.3461,2601.9,2601.8,1.67260167]
[1723891101335,0.3461,2601.9,2601.8,2.03940167]
[1723891103123,0.3461,2601.9,2601.7,0.00577145]
[1723891103124,9.1893,2601.9,2601.7,0.00577145]
[1723891103325,4.5538,2601.8,2601.7,0.00577145]
[1723891103840,9.5538,2601.8,2601.7,0.00577145]
[1723891106528,10.55851916,2601.8,2601.7,0.00577145]
[1723891109339,10.55851916,2601.8,2601.7,1.11377145]
[1723891109539,9.5538,2601.8,2601.7,1.11377145]
[1723891110334,4.5538,2601.8,2601.7,1.11377145]
[1723891114539,4.5538,2601.8,2601.7,0.00577145]
[1723891114839,5.99479,2601.8,2601.7,0.00577145]
[1723891115140,4.5538,2601.8,2601.7,0.00577145]
[1723891115839,9.5538,2601.8,2601.7,0.00577145]
[1723891119138,10.99479,2601.8,2601.7,0.00577145]
[1723891119344,1.44108,2601.7,2601.5,1.108]
[1723891119539,1.4411,2601.6,2601.5,1.108]
[1723891119737,5.0264,2601.8,2600.9,5.379]
[1723891119738,3.844,2601.7,2600.9,5.379]
[1723891119939,1.44127,2601.3,2601.0,1.4872]
[1723891120134,4.64913,2601.2,2601.0,1.71881167]
[1723891120440,3.5621,2601.2,2601.0,1.71881167]
[1723891120743,0.3748,2601.1,2601.0,1.71881167]
[1723891121546,0.00577145,2601.4,2601.0,1.71881167]
[1723891121730,0.38057145,2601.4,2601.1,1.33961167]
[1723891121938,0.38057145,2601.4,2601.1,0.23161167]
[1723891123442,1.82179145,2601.4,2601.1,0.23161167]
[1723891124144,0.38057145,2601.4,2601.1,0.23161167]
[1723891124960,0.38057145,2601.4,2601.1,1.67296167]
[1723891128248,0.00577145,2601.4,2601.1,1.67296167]
[1723891129438,0.00577145,2601.4,2601.1,0.23161167]
[1723891131246,0.00577145,2601.4,2601.1,1.67298167]
[1723891134349,0.00577145,2601.4,2601.1,1.44137]
[1723891134549,0.00577145,2601.4,2601.2,0.23161167]
[1723891134747,0.00577145,2601.4,2601.3,0.3746]
[1723891134949,0.00577145,2601.4,2601.3,1.0937]
[1723891135146,3.84977145,2601.4,2601.3,1.0937]
[1723891138456,4.85449061,2601.4,2601.3,1.0937]
[1723891140258,6.29571061,2601.4,2601.3,1.0937]
[1723891140442,5.29099145,2601.4,2601.3,1.0937]
[1723891141543,6.29571061,2601.4,2601.3,1.0937]
[1723891143250,6.29571061,2601.4,2601.3,0.3688]
[1723891143446,1.44131,2601.3,2601.1,1.107]
[1723891143651,2.80283562,2601.3,2601.2,0.23161167]
[1723891145054,1.36152562,2601.3,2601.2,0.23161167]
[1723891145350,2.80280562,2601.3,2601.2,0.23161167]
[1723891145555,1.36152562,2601.3,2601.2,0.23161167]
[1723891146657,2.80280562,2601.3,2601.2,0.23161167]
[1723891147860,3.66580188,2601.3,2601.2,0.23161167]
[1723891148051,2.15558,2601.3,2601.2,0.23161167]
[1723891148351,4.16920917,2601.3,2601.2,0.23161167]
[1723891149150,1.4415,2600.9,2600.8,0.00577145]
[1723891149349,2.5485,2600.9,2600.8,0.00577145]
[1723891149549,8.40624655,2600.9,2600.8,0.00577145]
[1723891149755,7.4651,2600.9,2600.8,0.00577145]
[1723891150350,7.4651,2600.9,2600.5,0.002905]
[1723891150351,1.44167,2600.6,2600.5,0.002905]
[1723891150657,2.44790258,2600.6,2600.5,0.002905]
[1723891150856,6.79661811,2600.6,2600.5,0.002905]
[1723891151252,6.29320904,2600.6,2600.5,0.002905]
[1723891151758,4.85153904,2600.6,2600.5,1.109905]
[1723891152051,1.00593904,2600.7,2600.5,1.34151667]
[1723891152251,1.00593904,2600.7,2600.6,0.23161167]
[1723891153056,1.00593904,2600.7,2600.6,0.59061167]
[1723891153354,5.35414811,2600.7,2600.5,0.002905]
[1723891153554,6.66822976,2600.6,2600.5,0.002905]
[1723891153747,4.221,2600.6,2600.5,0.002905]
[1723891153950,5.22655976,2600.6,2600.5,0.002905]
[1723891154356,4.221,2600.6,2600.5,0.002905]
[1723891156256,2.82259976,2600.7,2600.5,0.23451667]
[1723891156453,2.82259976,2600.7,2600.6,0.23161167]
[1723891160263,1.81704,2600.7,2600.6,0.23161167]
[1723891160454,2.82259976,2600.7,2600.6,0.23161167]
[1723891161662,1.81704,2600.7,2600.6,0.23161167]
[1723891162159,2.82259976,2600.7,2600.6,0.23161167]
[1723891166361,1.81704,2600.7,2600.6,0.23161167]
[1723891166765,2.82259976,2600.7,2600.6,0.23161167]
[1723891167667,1.81704,2600.7,2600.6,0.23161167]
[1723891169982,2.92404,2600.7,2600.6,0.23161167]
[1723891170172,6.13184,2600.7,2600.6,0.23161167]
[1723891170368,7.13739976,2600.7,2600.6,0.23161167]
[1723891170575,6.13184,2600.7,2600.6,0.23161167]
[1723891170776,7.13739976,2600.7,2600.6,0.23161167]
[1723891171471,6.13184,2600.7,2600.6,0.23161167]
[1723891174979,7.13739976,2600.7,2600.6,0.23161167]
[1723891175573,1.44167,2600.6,2600.5,0.002905]
[1723891175879,1.44167,2600.6,2600.3,0.00577145]
[1723891175880,1.44178,2600.4,2600.3,0.00577145]
[1723891176073,6.76095416,2600.4,2600.3,0.23738312]
[1723891176269,6.76095416,2600.4,2600.3,0.00577145]
[1723891176270,11.11152811,2600.4,2600.3,0.00577145]
[1723891176467,11.46682811,2600.4,2600.3,0.00577145]
[1723891176672,11.96994414,2600.4,2600.3,0.00577145]
[1723891176872,11.96994414,2600.4,2600.3,0.00908019]
[1723891177781,16.96994414,2600.4,2600.3,0.00908019]
[1723891178480,1.44195,2600.1,2599.9,0.3496]
[1723891178679,1.4661,2600.0,2599.9,0.3496]
[1723891179076,1.4661,2600.0,2599.9,0.58121167]
[1723891179577,2.91298416,2600.0,2599.9,0.58515857]
[1723891179771,2.91298416,2600.0,2599.9,0.23555857]
[1723891181485,3.91671538,2600.0,2599.9,0.23555857]
[1723891181782,4.27541538,2600.0,2599.9,0.23555857]
[1723891182080,3.91671538,2600.0,2599.9,0.23555857]